Workbook

Sheet Sheet1
A1: 日期 | B1: 姓名 | C1: 提成 | D1: 中药单品 | E1: 破壁 | F1: 合计 | G1: 签字
A2: 201503 | B2: 龙亚军 | C2: 3121 | D2: 63 | E2: 108 | F2: 3292
B3: 羊玉梅 | C3: 3303 | D3: 33.6 | E3: 16.9 | F3: 3353.5
B4: 余建琼 | C4: 3694 | D4: 39 | E4: 115 | F4: 3848
A6: 日期 | B6: 姓名 | C6: 4月提成*95% | D6: 中药5% | E6: 合计 | F6: 签字
A7: 201504 | B7: 羊玉梅 | C7: 2208 | D7: 140 | E7: 2348
B8: 余建琼 | C8: 3529 | D8: 102 | E8: 3631
A10: 日期 | B10: 姓名 | C10: 提成 | E10: 4月单品罚款 | F10: 4月单品追加 | G10: 5月单品罚款 | H10: 5月单品追加 | I10: 合计 | J10: 签字
A11: 201505 | B11: 羊玉梅 | E11: -27 | F11: 12+126+364
B12: 余建琼 | F12: 46.5+21+246
A14: 日期 | B14: 姓名 | C14: 提成 | F14: 合计 | G14: 签字
B15: 羊玉梅
B16: 余建琼
A18: 日期 | B18: 姓名 | C18: 提成 | F18: 合计 | G18: 签字
B19: 羊玉梅
B20: 余建琼
A22: 日期 | B22: 姓名 | C22: 提成 | F22: 合计 | G22: 签字
B23: 羊玉梅
B24: 余建琼
A26: 日期 | B26: 姓名 | C26: 提成 | F26: 合计 | G26: 签字
B27: 羊玉梅
B28: 余建琼
A30: 日期 | B30: 姓名 | C30: 提成 | F30: 合计 | G30: 签字
B31: 羊玉梅
B32: 余建琼

Sheet Sheet2
B1: 2月提成 | C1: 补肾扣款 | D1: 实发金额 | E1: 签名
A2: 羊玉梅 | B2: 628 | C2: -21 | D2: 607
A3: 王艳利 | B3: 591 | C3: -6 | D3: 585
A4: 李永强 | B4: 1496 | C4: -33 | D4: 1463
B5: =SUM(B2:B4) -> 2715 | D5: =SUM(D2:D4) -> 2655
B7: 3月提成 | C7: 补肾扣款 | D7: 罚款 | E7: 实发金额 | F7: 签名
A8: 羊玉梅 | B8: 897 | C8: -24 | E8: 873
A9: 王艳利 | B9: 1047 | C9: -24 | D9: -50 | E9: 973
A10: 李永强 | B10: 1278 | C10: -6 | D10: -20 | E10: 1252
B11: =SUM(B8:B10) -> 3222
B13: 4月提成 | C13: 补肾扣款 | D13: 保洁 | E13: 熊胆补扣 | F13: 实发金额 | G13: 签名
A14: 羊玉梅 | B14: 761 | C14: -30 | D14: -17 | E14: -17 | F14: 697
A15: 王艳利 | B15: 1023 | C15: -12 | D15: -17 | E15: -24 | F15: 970
A16: 李永强 | B16: 1310 | C16: -12 | D16: -17 | E16: -26 | F16: 1255
B17: =SUM(B14:B16) -> 3094 | F17: =SUM(F14:F16) -> 2922
B19: 5月提成 | C19: 补肾补扣 | D19: 罚款 | E19: 实发金额 | F19: 签名
A20: 羊玉梅 | B20: 826 | C20: -70 | E20: 756
A21: 王艳利 | B21: 1238 | C21: -42 | E21: 1196
A22: 李永强 | B22: 1307 | C22: -140 | D22: -20 | E22: 1147
B23: =SUM(B20:B22) -> 3371 | C23: =SUM(C20:C22) -> -252 | E23: =SUM(E20:E22) -> 3099
B25: 6月提成 | C25: 实发金额 | D25: 签名
A26: 羊玉梅 | B26: 1456
A27: 王艳利 | B27: 1519.5
A28: 李永强 | B28: 1936
B29: =SUM(B26:B28) -> 4911.5 | D29: =SUM(C26:C28) -> 0
B31: 7月提成 | C31: 补肾扣款 | D31: 罚款 | E31: 效期扣款 | F31: 实发金额 | G31: 签名
A32: 李永强 | B32: 1121 | C32: -18 | E32: -34 | F32: 1069
A33: 王艳利 | B33: 1655 | D33: -20 | E33: -22 | F33: 1613
A34: 羊玉梅 | B34: 1264 | C34: -24 | E34: -22 | F34: 1218
A35: 钱胜 | B35: 170 | F35: 170
B36: =SUM(B32:B35) -> 4210 | F36: =SUM(F32:F35) -> 4070
B38: 8月提成 | C38: 团促扣款 | D38: 实发金额 | E38: 签名
A39: 钱胜 | B39: 1481 | D39: 1481
A40: 王艳利 | B40: 1374 | C40: -50 | D40: 1324
A41: 羊玉梅 | B41: 1447 | D41: 1447
B42: =SUM(B39:B41) -> 4302 | D42: =SUM(D39:D41) -> 4252
B45: 9月提成 | C45: 实发金额 | D45: 签名
A46: 钱胜 | B46: 1867
A47: 王艳利 | B47: 2022
A48: 羊玉梅 | B48: 1849
B49: =SUM(B46:B48) -> 5738
A52: 姓名 | B52: 10月提成 | C52: 罚款 | D52: 实发金额 | E52: 签名
A53: 钱胜 | B53: 1974 | D53: 1974
A54: 王艳利 | B54: 1935 | D54: 1935
A55: 羊玉梅 | B55: 1559 | C55: -50 | D55: 1509
B56: 5468 | D56: =SUM(D53:D55) -> 5418
A58: 姓名 | B58: 11月提成 | C58: 签名
A59: 钱胜 | B59: 1818
A60: 王艳利 | B60: 2288
A61: 羊玉梅 | B61: 1579
B62: =SUM(B59:B61) -> 5685
A64: 姓名 | B64: 12月提成 | C64: 签名
A65: 钱胜 | B65: 1813
A66: 王艳利 | B66: 2127
A67: 羊玉梅 | B67: 2240
B68: =SUM(B65:B67) -> 6180
A70: 姓名 | B70: 1月提成 | C70: 签名
A71: 钱胜 | B71: 2519
A72: 王艳利 | B72: 1737
A73: 羊玉梅 | B73: 1679
B74: =SUM(B71:B73) -> 5935
A76: 姓名 | B76: 2月提成 | C76: 效期扣款 | D76: 实发金额 | E76: 签名
A77: 钱胜 | B77: 1159 | C77: -12 | D77: 1147
A78: 王艳利 | B78: 1309 | C78: -22 | D78: 1287
A79: 羊玉梅 | B79: 1291 | C79: -12 | D79: 1279
B80: =SUM(B77:B79) -> 3759
A82: 姓名 | B82: 3月提成 | C82: 签名
A83: 钱胜 | B83: 1670
A84: 羊玉梅 | B84: 2212
B85: =SUM(B83:B84) -> 3882
A87: 姓名 | B87: 4月提成 | C87: 签名
A88: 钱胜 | B88: 2060
A89: 羊玉梅 | B89: 1895
A90: 余建琼 | B90: 1249
B91: =SUM(B88:B90) -> 5204
A92: 姓名 | B92: 6月提成 | C92: 7月 | D92: 8月 | E92: 9月 | H92: 10月 | K92: 11月
A93: 钱胜 | B93: 1030 | C93: 1402 | E93: 提成 | F93: 单品 | G93: 合计 | H93: 提成 | I93: 中山\西洋参\赶黄等 | J93: 合计 | K93: 提成 | L93: 中药、中智 | M93: 合计
A94: 羊玉梅 | B94: 1332 | C94: 1944.4 | D94: 1276 | E94: 2251 | F94: 751.5 | G94: 3002.5 | H94: 1740 | I94: 115 | J94: 1855 | K94: 2473 | L94: 54.8 | M94: 2527.8
A95: 余建琼 | B95: 1441 | C95: 2663 | D95: 2760 | E95: 3642 | F95: 697.5 | G95: 4339.5 | H95: 3039 | I95: 209 | J95: 3248 | K95: 2787 | L95: 183.5 | M95: 2970.5
A96: 龙亚军 | C96: 558 | D96: 2978.8 | E96: 2660 | F96: 868 | G96: 3528 | H96: 2253 | I96: 335 | J96: 2588 | K96: 3740 | L96: 209 | M96: 3949
D97: 医生(陈20 葸75 熊30 杨24) | E97: 149 | G97: 149 | H97: 医生(葸65 熊60) | J97: 125 | K97: 医生（葸100，陈15） | M97: 115
E98: =SUM(E94:E97) -> 8702 | G98: =SUM(G94:G97) -> 11019 | J98: 7816 | M98: 9562.3
A99: 姓名 | B99: 12月提成 | C99: 中药 | D99: 藏药补4季度 | F99: 1月提成 | G99: 中药单品 | H99: 破壁 | I99: 藏药1月追加 | J99: 合计 | K99: 2月提成 | L99: 中药单品 | M99: 破壁 | N99: 合计
A100: 龙亚军 | B100: 1929 | C100: 108 | D100: 1025 | E100: 3062 | F100: 2688 | G100: 27 | H100: 341.4 | I100: 108.6 | J100: =F100+G100+H100+I100 -> 3165 | K100: 2109
A101: 羊玉梅 | B101: 3186 | C101: 116 | D101: 1036 | E101: 4338 | F101: 2583.5 | G101: 7 | H101: 19 | I101: 361.2 | J101: =F101+G101+H101+I101 -> 2970.7 | K101: 3185
A102: 余建琼 | B102: 3063 | C102: 273 | D102: 985 | E102: 4321 | F102: 3210.5 | G102: 92 | H102: 29.4 | I102: 307.6 | J102: =F102+G102+H102+I102 -> 3639.5 | K102: 3141
D103: 合计 | E103: =SUM(E100:E102) -> 11721 | F103: =SUM(F100:F102) -> 8482 | J103: =SUM(J100:J102) -> 9775.2
D104: 医生（葸55，赵勇25） | E104: 80 | I104: 葸医生： | J104: 94.4
E105: =SUM(E103:E104) -> 11801 | J105: =SUM(J103:J104) -> 9869.6
A106: 姓名 | B106: 2月提成 | C106: 中药单品 | D106: 破壁 | E106: 合计
A107: 龙亚军 | B107: 2109 | C107: 63.7 | D107: 12.6 | E107: =B107+C107+D107 -> 2185.3
A108: 羊玉梅 | B108: 3185 | C108: 22.5 | E108: =B108+C108+D108 -> 3207.5
A109: 余建琼 | B109: 3141 | C109: 32.1 | D109: 92 | E109: =B109+C109+D109 -> 3265.1
D110: 葸医生 | E110: 95
E111: 8752.9
A113: 姓名 | B113: 3月提成 | C113: 中药单品 | D113: 破壁 | E113: 合计
A114: 龙亚军 | B114: 3121 | C114: 63 | D114: 108 | E114: 3292
A115: 羊玉梅 | B115: 3303 | C115: 33.6 | D115: 16.9 | E115: 3353.5
A116: 余建琼 | B116: 3694 | C116: 39 | D116: 115 | E116: 3848
D117: 葸医生 | E117: 65
E118: =SUM(E114:E117) -> 10558.5
A120: 姓名 | B120: 4月提成*95% | C120: 中药5% | D120: 合计 | E120: 葸医生
A121: 羊玉梅 | B121: 2208 | C121: 140 | D121: 2348
A122: 余建琼 | B122: 3529 | C122: 102 | D122: 3631
D123: =SUM(D121:D122) -> 5979 | E123: 70 | F123: =SUM(D123:E123) -> 6049

Sheet Sheet3
A1: 时间 | B1: 姓名 | C1: 提成 | D1: 签名 | E1: 姓名 | F1: 提成 | G1: 签名 | H1: 姓名 | I1: 提成 | J1: 签名
A2: 2014.05 | B2: 钱胜 | C2: 1375 | E2: 羊玉梅 | F2: 848 | H2: 余建琼 | I2: 1368
A3: 2014.06 | B3: 钱胜 | C3: 1030 | E3: 羊玉梅 | F3: 1332 | H3: 余建琼 | I3: 1441
A4: 2014.07 | B4: 钱胜 | C4: 1402 | E4: 羊玉梅 | F4: 1944 | H4: 余建琼 | I4: 2663 | K4: 龙亚军 | L4: 558
A5: 2014.08 | B5: 龙亚军 | C5: 2978.8 | E5: 羊玉梅 | F5: 1249 | H5: 余建琼 | I5: 2760
A6: 2014.09 | B6: 龙亚军 | C6: 3528 | E6: 羊玉梅 | F6: 3002.5 | H6: 余建琼 | I6: 4339.5
A7: 2014.1 | B7: 龙亚军 | C7: 2588 | E7: 羊玉梅 | F7: 1855 | H7: 余建琼 | I7: 3248
A8: 2014.11 | B8: 龙亚军 | C8: 3949 | E8: 羊玉梅 | F8: 2527.8 | H8: 余建琼 | I8: 2970.5
A9: 2014.12 | B9: 龙亚军 | E9: 羊玉梅 | H9: 余建琼
A10: 日期 | B10: 姓名 | C10: 12月提成 | D10: 中药 | E10: 藏药补4季度 | F10: 合计 | H10: 签字
A11: 2014.12 | B11: 龙亚军 | C11: 1929 | D11: 108 | E11: 1025 | F11: 3062
B12: 羊玉梅 | C12: 3186 | D12: 116 | E12: 1036 | F12: 4338
B13: 余建琼 | C13: 3063 | D13: 273 | E13: 985 | F13: 4321
A15: 日期 | B15: 姓名 | C15: 1月提成 | D15: 中药单品1月 | E15: 破壁1月 | F15: 藏药1月追加 | G15: 合计 | H15: 签字
A16: 201501 | B16: 龙亚军 | C16: 2688 | D16: 27 | E16: 341.4 | F16: 108.6 | G16: =C16+D16+E16+F16 -> 3165
B17: 羊玉梅 | C17: 2583.5 | D17: 7 | E17: 19 | F17: 361.2 | G17: =C17+D17+E17+F17 -> 2970.7
B18: 余建琼 | C18: 3210.5 | D18: 92 | E18: 29.4 | F18: 307.6 | G18: =C18+D18+E18+F18 -> 3639.5
G19: =SUM(G16:G18) -> 9775.2
A20: 日期 | B20: 姓名 | C20: 提成 | F20: 合计 | H20: 签字
A21: 201502 | B21: 龙亚军 | C21: 2109
B22: 羊玉梅 | C22: 3185
B23: 余建琼 | C23: 3141
